Cogmind - Beta 14 @@@ ROGUE MODE // 2025.01.05 @ 01:58:02 Player: Darsidian Result: Self-destructed Performance ------------- Evolutions (5) 2500 Regions Visited (11) 2200 Robots Destroyed (210) 1050 Value Destroyed (7224) 7224 Prototype IDs (44) 880 Alien Tech Used (0) 0 Bonus (1884) 1884 TOTAL SCORE: 15738 Bonus ------- High Alert Combat Kills 1316 Follower Combat Kills 700 Aligned with FarCom 300 Friendly Fire -432 Cogmind --------- Core Integrity 275/1000 Matter 239/300 Energy 3/450 System Corruption 0% Temperature Cool (0) Movement Rolling (130) Ox2 Location -5/Upper Caves Parts ------- > --- POWER (1) -------- (None) > --- PROPULSION (4) --- Compact Wheel > --- UTILITY (10) ----- Large Storage Unit Energy Well Improved Signal Interpreter Advanced Terrain Scan Processor Improved Target Analyzer Improved Kinecellerator System Guard System Guard > --- WEAPON (2) ------- Mass Driver > --- INVENTORY (15) --- Improved Transmission Jammer Advanced ECM Suite High-powered Tractor Beam Tesla Rifle Long-range Proton Cannon Phase Cannon Phase Cannon Faulty Cooled Plasma Cannon Improved Remote Datajack Plasma Cutter CPS Tube (2) Axe PL-3XN's Ring of Power Peak State ------------ > --- POWER ------------ Reinforced Fission Core > --- PROPULSION ------- Light Treads Medium Treads Improved Medium Treads Armored Medium Treads > --- UTILITY ---------- Advanced Heat Sink Large Storage Unit Enhanced Optical Array Improved Signal Interpreter Improved Terrain Scan Processor Advanced Targeting Computer Launcher Guidance Computer System Guard Advanced System Restoration Module Long-range Tractor Beam > --- WEAPON ----------- Enhanced Gauss Cannon Improved Remote Datajack > --- INVENTORY -------- Cooled Deuterium Engine Light Treads Advanced ECM Suite Improved Thermal Shield Long-range Proton Cannon Cooled Particle Cannon Cooled Particle Cannon Cooled Particle Cannon Cooled Plasma Cannon Gauss Cannon Heavy Rocket Launcher Plasma Cutter CPS Tube Katana PL-3XN's Ring of Power [Rating: 81] Favorites ----------- Power Light Nuclear Core Engine Light Ion Engine Power Core Light Nuclear Core Propulsion Improved Carbon-fiber Leg Treads Light Treads Leg Improved Carbon-fiber Leg Wheel Wheel Utility Large Storage Unit Device Improved Terrain Scanner Storage Large Storage Unit Processor Advanced Targeting Computer Hackware Hacking Suite Protection Improved Light Armor Plating Weapon Cooled Particle Cannon Energy Gun EM Shotgun Energy Cannon Cooled Particle Cannon Ballistic Gun Light Assault Rifle Ballistic Cannon Gauss Cannon Launcher Heavy Rocket Launcher Special Weapon Plasma Cutter Slashing Weapon Katana Special Melee Weapon Improved Datajack Build | -11 -10 -10 -10 -9 -8 -8 -8 -8 -6 -5 -5 ------- Run | Yrd Mat Min Exi Min Mat Sto Rec Scr Fac Fac Upp Slots Evolved 10 | . . . . . 4 . . . 4 2 . Power . | . . . . . . . . . . . . Propulsion 2 | . . . . . . . . . 1 1 . Utility 8 | . . . . . 4 . . . 3 1 . Weapon . | . . . . . . . . . . . . Parts Attached 281 | 11 12 . . 6 38 36 13 5 77 78 5 Power 18 | 1 1 . . . 3 2 1 . 8 2 . Engine 11 | 1 1 . . . 2 2 . . 4 1 . Core 7 | . . . . . 1 . 1 . 4 1 . Reactor . | . . . . . . . . . . . . Propulsion 49 | 6 . . . 1 5 1 . . 19 16 1 Treads 18 | 3 . . . 1 1 . . . 9 4 . Leg 12 | . . . . . 2 1 . . 9 . . Wheel 19 | 3 . . . . 2 . . . 1 12 1 Hover . | . . . . . . . . . . . . Flight . | . . . . . . . . . . . . Utility 81 | 2 3 . . 2 9 6 5 3 23 26 2 Device 36 | 1 . . . . 2 2 5 2 7 15 2 Storage 9 | 1 3 . . . 2 . . . . 3 . Processor 27 | . . . . 2 5 1 . 1 10 8 . Hackware 2 | . . . . . . . . . 2 . . Protection 7 | . . . . . . 3 . . 4 . . Artifact . | . . . . . . . . . . . . Weapon 133 | 2 8 . . 3 21 27 7 2 27 34 2 Energy Gun 23 | 2 6 . . 1 5 3 . . 1 5 . Energy Cannon 54 | . . . . . 8 14 2 . 16 13 1 Ballistic Gun 4 | . . . . . 2 1 . 1 . . . Ballistic Cannon 15 | . . . . . 1 . . . 3 10 1 Launcher 13 | . . . . 1 4 3 . . 2 3 . Special Weapon 7 | . 2 . . . . 1 . . 3 1 . Impact Weapon . | . . . . . . . . . . . . Slashing Weapon 7 | . . . . . . 2 2 1 . 2 . Piercing Weapon . | . . . . . . . . . . . . Special Melee Weapon 10 | . . . . 1 1 3 3 . 2 . . Unidentified Prototypes 15 | . . . . . 5 4 . . 6 . . Corrupted Parts 3 | . . . . . 1 . . . 2 . . System Corruption 20 | . . . . . 2 . . . 18 . . Parts Lost 57 | . 2 . . . 7 4 1 . 10 26 7 Power 6 | . . . . . 1 1 1 . 1 1 1 Propulsion 18 | . . . . . 3 1 . . 2 10 2 Utility 16 | . . . . . . . . . 5 8 3 Weapon 17 | . 2 . . . 3 2 . . 2 7 1 Highest Loss Streak 7 | . 1 . . . 6 4 1 . 5 6 7 To Critical Strikes . | . . . . . . . . . . . . Average Slot Usage (%) 95 | . 99 100 100 100 93 99 99 100 90 89 72 Engine 5 | . 14 14 14 14 8 8 8 . 2 2 1 Core 2 | . . . . . . . . 9 3 2 . Treads 8 | . 28 28 28 28 4 . . . 8 6 . Leg 8 | . . . . . 9 18 18 18 5 . . Wheel 1 | . . . . . 3 . . . . 10 9 Device 12 | . 14 14 14 1 6 7 14 18 11 14 7 Storage 8 | . 14 14 14 14 9 9 9 9 6 7 11 Processor 23 | . . . . 12 34 29 29 27 24 31 31 Hackware 2 | . . . . . . . . . 10 . . Protection 1 | . . . . . . 7 1 . 2 . . Energy Gun 4 | . 27 28 28 18 1 . . . . 2 . Energy Cannon 5 | . . . . . 12 14 4 . 9 4 1 Ballistic Cannon 1 | . . . . . 1 . . . 2 3 7 Slashing Weapon 1 | . . . . . . . 6 9 . . . Special Melee Weapon 2 | . . . . 9 . 1 6 9 . . . Peak Build Rating 81 | 9 13 12 13 13 44 43 42 40 71 81 80 Average Rating 43 | 4 11 12 12 11 35 37 37 39 62 64 63 On Entrance 28 | . 9 12 12 13 11 43 39 38 40 43 77 Naked Turns . | . . . . . . . . . . . . Heaviest Build 66 | 13 30 30 30 31 60 47 48 35 54 66 55 Greatest Support 105 | 40 40 40 40 43 43 36 36 36 100 105 56 Greatest Overweight (x) 16 | . . . . . 8 1 1 . 16 5 2 Average Overweight (x) . | . . . . . . . . . . 1 . Largest Inventory Capacity 25 | 8 25 15 15 15 20 15 15 15 15 15 15 Average Capacity 14 | 7 14 15 15 15 15 15 15 15 15 15 15 Most Carried 16 | 6 15 14 15 15 16 15 15 15 15 15 15 Average Carried 13 | 2 11 14 14 13 14 13 14 14 14 12 14 Final Capacity 15 | 8 15 15 15 15 15 15 15 15 15 15 15 Final Carried 15 | 4 14 14 15 14 15 15 14 15 12 15 13 Class Distribution -------------------- 24% | Mutant 21% | Scavenger-Skirmisher 16% | Commander-Mutant 13% | Skirmisher 6% | Commander-Skirmisher 6% | Scavenger-Mutant 4% | Commander-Assassin 4% | Hacker-Skirmisher Dominant Class ---------------- Mutant | -10/Materials Mutant | -10/Mines Mutant | -10/Exiles Mutant | -9/Mines Skirmisher | -8/Materials Skirmisher | -8/Storage Commander-Assassin | -8/Recycling Commander-Mutant | -8/Scraptown Scavenger-Skirmisher | -6/Factory Scavenger-Skirmisher | -5/Factory Mutant | -5/Upper Caves Resources | -11 -10 -10 -10 -9 -8 -8 -8 -8 -6 -5 -5 ----------- Run | Yrd Mat Min Exi Min Mat Sto Rec Scr Fac Fac Upp Matter Collected 4796 | 300 125 . 5 76 628 403 171 78 1257 1746 7 Remotely 440 | . . . . . . . . . . 435 5 Salvage Created 9009 | 142 453 . . 46 953 861 1105 . 2777 2672 . Parts 432 | 9 40 . . 11 43 35 46 . 123 125 . Haulers Intercepted 8 | . 1 . . . 1 2 . . 3 1 . Recyclers Shooed 17 | . 1 . . . 1 . 4 . 3 8 . Parts Field Recycled . | . . . . . . . . . . . . Retrieved Matter . | . . . . . . . . . . . . Parts Self-Destructed 1 | . . . . . . . . . . . 1 Prevented . | . . . . . . . . . . . . Kills | -11 -10 -10 -10 -9 -8 -8 -8 -8 -6 -5 -5 ------- Run | Yrd Mat Min Exi Min Mat Sto Rec Scr Fac Fac Upp Combat Hostiles Destroyed 124 | . 11 . . 4 14 12 4 . 45 34 . Melee 2 | . . . . . . . 1 . . 1 . Guns 12 | . 11 . . . 1 . . . . . . Cannons 76 | . . . . . 6 8 3 . 39 20 . AOE 30 | . . . . 4 7 3 . . 4 12 . Classes Destroyed 20 | 2 5 . . . 4 3 . . 6 . . Worker 16 | . . . . . 1 4 . . 1 10 . Builder 10 | . . . . . . 1 . . 2 7 . Tunneler 5 | 2 . . . 1 1 . . . . 1 . Hauler 8 | . 1 . . . 1 2 . . 3 1 . Recycler 23 | 1 1 . . . 3 2 7 . 2 7 . Carrier 1 | . . . . . . . . . 1 . . Mechanic 2 | . . . . . . 1 . . . 1 . Operator 2 | . 1 . . . . . . . 1 . . Watcher 17 | . 3 . . . 5 1 . . . 8 . Swarmer 23 | . 9 . . 4 . . 2 . 3 5 . Saboteur 1 | . . . . . . . . . 1 . . Grunt 46 | . 2 . . . 10 7 . . 14 13 . Brawler 4 | . . . . . . . . . 3 1 . Duelist 8 | . . . . . 1 2 1 . 1 3 . Protector 4 | . . . . . . 1 . . 1 2 . Sentry 8 | . . . . . 1 2 1 . 4 . . Specialist 1 | . . . . . . . . . 1 . . Hunter 13 | . . . . . 3 . . . 8 2 . Programmer 17 | . . . . . . . . . 9 8 . Heavy 1 | . . . . . . . . . 1 . . Best Kill Streak 12 | 1 6 . . 5 6 8 4 . 5 12 . Combat Bots Only 6 | . 6 . . 4 4 5 1 . 5 4 . Max Kills in Single Turn 4 | 1 2 . . 4 2 4 1 . 2 4 . Gunslinging 1 | . 1 . . . . . . . . . . Exploded 4 | . . . . 4 2 2 . . 2 4 . Melee 1 | . . . . . . . 1 . . 1 . Uniques/NPCs Destroyed . | . . . . . . . . . . . . Combat | -11 -10 -10 -10 -9 -8 -8 -8 -8 -6 -5 -5 -------- Run | Yrd Mat Min Exi Min Mat Sto Rec Scr Fac Fac Upp Hostile Shots Fired 757 | . 41 . . 4 77 40 7 . 309 226 53 Missed 209 | . 10 . . 1 26 5 2 . 97 58 10 Damage Taken 9573 | . 310 . . 34 851 759 83 . 3019 3782 735 Core 1531 | . 44 . . . 195 72 . . 495 590 135 Absorbed by Shields 310 | . . . . . . . . . . 208 102 Ignored by Resistances 90 | . . . . . . . . . . 90 . Regen/Repaired (Parts) 1034 | . . . . . 1 . . . 881 152 . Core Remaining (%) 68 | 100 . . . 82 . . . 51 41 . . Volleys Fired 519 | 4 47 . . 2 65 48 14 . 166 168 5 Largest 2 | 2 2 . . 2 2 2 2 . 2 2 2 Hottest 180 | 90 100 . . 90 180 180 90 . 180 170 142 Shots Fired 949 | 8 83 . . 3 109 94 22 . 310 310 10 Gun 152 | 8 76 . . 2 25 1 . . . 40 . Cannon 756 | . . . . . 72 89 22 . 299 264 10 Launcher 28 | . . . . 1 12 4 . . 6 5 . Special 13 | . 7 . . . . . . . 5 1 . Kinetic 273 | . . . . . 46 . . . 66 153 8 Thermal 532 | 4 14 . . . 42 89 22 . 233 126 2 Explosive 28 | . . . . 1 12 4 . . 6 5 . Electromagnetic 110 | 4 69 . . 2 9 1 . . . 25 . Robot Hit Streak 37 | 4 8 . . 1 8 9 6 . 37 17 4 Robot Miss Streak 5 | 1 4 . . 3 5 4 2 . 2 5 1 Penetration Max 1 | . . . . . . . . . 1 1 . Secondary Targets 3 | . 2 . . . 1 . . . . . . Max Gunslinging Chain 1 | . 1 . . . 1 . . . . . . Shots Hit Robots 685 | 5 48 . . 1 69 56 63 4 229 204 6 Core Hits 337 | 4 25 . . 4 45 39 14 . 93 112 1 Critical Kills 2 | . . . . . . 1 . . . 1 . Critical Parts Destroyed . | . . . . . . . . . . . . Critical Strikes 27 | . . . . . 1 1 . . 9 16 . Meltdown 2 | . . . . . . 1 . . . 1 . Blast 24 | . . . . . 1 . . . 9 14 . Sever 1 | . . . . . . . . . . 1 . Melee Attacks 89 | . . . . . 1 16 58 4 3 7 . Impact . | . . . . . . . . . . . . Slashing 38 | . . . . . . 2 29 . . 7 . Piercing . | . . . . . . . . . . . . Sneak Attacks 45 | . . . . . 1 10 27 4 3 . . Combat Hostiles 13 | . . . . . . . 13 . . . . Follow-up Attacks . | . . . . . . . . . . . . Damage Inflicted 24572 | 63 755 . . 233 2444 2101 1827 . 7820 9142 187 Guns 1620 | 63 662 . . 11 205 . . . . 679 . Cannons 15014 | . . . . . 1138 1221 268 . 6856 5344 187 Explosions 6216 | . 93 . . 222 1101 880 . . 964 2956 . Melee 1722 | . . . . . . . 1559 . . 163 . Ramming . | . . . . . . . . . . . . Kinetic 5409 | . . . . . 351 . . . 1797 3105 156 Thermal 12285 | 38 129 . . . 907 1221 268 . 5483 4208 31 Explosive 3895 | . . . . 222 1063 880 . . 498 1232 . Electromagnetic 1261 | 25 626 . . 11 123 . . . 42 434 . Impact . | . . . . . . . . . . . . Slashing 1722 | . . . . . . . 1559 . . 163 . Piercing . | . . . . . . . . . . . . Highest Corruption 31 | . . . . . 2 4 4 4 31 3 . Average Corruption 3 | . . . . . 1 3 4 4 4 2 . Corruption Purged 2 | . . . . . 2 . . . . . . Corruption Blocked . | . . . . . . . . . . . . Effects 102 | . . . . . 1 32 34 . 21 14 . Message Errors 22 | . . . . . 1 9 5 . 2 5 . Matter Fused 21 | . . . . . . 3 11 . 5 2 . Heat Flow Errors 10 | . . . . . . 3 4 . 3 . . Energy Discharges 13 | . . . . . . 4 5 . 3 1 . Parts Rejected 2 | . . . . . . 2 . . . . . Parts Fused 1 | . . . . . . . 1 . . . . Data Loss (minor) 15 | . . . . . . 5 7 . 3 . . Data Loss (major) 6 | . . . . . . 3 1 . . 2 . Misfires 5 | . . . . . . 2 . . 2 1 . Alerts 3 | . . . . . . 1 . . . 2 . Weapon Failures 4 | . . . . . . . . . 3 1 . Overload Shots 18 | . . . . . 2 3 1 . 12 . . Effects 2 | . . . . . . . . . 2 . . Energy Bleed 2 | . . . . . . . . . 2 . . Overflow Damage 1366 | . 8 . . 18 70 19 334 . 404 513 . Projectiles 413 | . . . . . 50 3 . . 232 128 . Explosions 619 | . 8 . . 18 20 16 . . 172 385 . Melee 334 | . . . . . . . 334 . . . . Knockbacks 45 | . . . . . 1 . . . 18 22 4 Impact . | . . . . . . . . . . . . Kinetic 44 | . . . . . 1 . . . 18 21 4 Secondary 1 | . . . . . . . . . . 1 . Self-Inflicted Damage 958 | . 51 . . 6 51 88 . . 179 583 . Shots 19 | . 2 . . 1 2 4 . . 2 8 . Rammed . | . . . . . . . . . . . . Targets Rammed . | . . . . . . . . . . . . Kicked . | . . . . . . . . . . . . Crushed . | . . . . . . . . . . . . Highest Temperature 430 | 60 150 . . 30 105 257 224 . 430 342 138 Average Temperature 73 | 24 46 . . 18 27 45 88 . 143 91 71 Received Heat Transfer 1945 | . 12 . . . 351 315 18 . 440 485 324 Effects 7 | . . . . . . . . . 3 4 . Shutdowns 1 | . . . . . . . . . 1 . . Energy Bleed 1 | . . . . . . . . . 1 . . Interference 5 | . . . . . . . . . 1 4 . Siege Activations . | . . . . . . . . . . . . Robots Corrupted . | . . . . . . . . . . . . Combat Hostiles . | . . . . . . . . . . . . Parts Fried 5 | . 2 . . . . . . . . 3 . Impact Corruptions . | . . . . . . . . . . . . Robots Melted 4 | . . . . . . 1 . . 2 1 . Combat Hostiles 4 | . . . . . . 1 . . 2 1 . Parts Melted 25 | . . . . . 1 4 . . 16 4 . Heat Transferred 14564 | 111 261 . . . 1136 1589 346 . 6695 4389 37 Parts Sabotaged . | . . . . . . . . . . . . Parts Stolen . | . . . . . . . . . . . . Parts Stripped . | . . . . . . . . . . . . Power Chain Reactions 5 | . 3 . . . 1 . . . . 1 . Alert | -11 -10 -10 -10 -9 -8 -8 -8 -8 -6 -5 -5 ------- Run | Yrd Mat Min Exi Min Mat Sto Rec Scr Fac Fac Upp Peak Influence 1357 | 15 235 17 . 108 380 450 393 . 1074 1357 . Initial 519 | . 9 17 . . . 76 175 . . 519 . Average 338 | 7 78 17 . 40 241 180 183 . 272 909 . Maximum Alert Level 4 | . 1 . . . 1 2 1 . 3 4 . Low Security (%) 49 | 100 97 100 . 100 39 61 53 . 48 . . Level 1 22 | . 2 . . . 60 30 46 . 27 . . Level 2 6 | . . . . . . 7 . . 14 4 . Level 3 20 | . . . . . . . . . 9 86 . Level 4 1 | . . . . . . . . . . 8 . Level 5 . | . . . . . . . . . . . . High Security . | . . . . . . . . . . . . Max Security . | . . . . . . . . . . . . Squads Dispatched 36 | . 1 . . . 1 4 . . 18 12 . Investigation 1 | . . . . . . . . . . 1 . Extermination 11 | . . . . . . . . . 7 4 . Reinforcement 13 | . 1 . . . 1 2 . . 6 3 . Assault 9 | . . . . . . 2 . . 3 4 . Garrison 2 | . . . . . . . . . 2 . . Intercept . | . . . . . . . . . . . . Searches Triggered . | . . . . . . . . . . . . Construction Impeded 2 | . . . . . . . . . . 2 . Haulers Reinforced 3 | . . . . . . . . . 2 1 . Active Scanning Responses . | . . . . . . . . . . . . Cargo Convoy Interrupts 1 | . . . . . . . . . 1 . . Stealth | -11 -10 -10 -10 -9 -8 -8 -8 -8 -6 -5 -5 --------- Run | Yrd Mat Min Exi Min Mat Sto Rec Scr Fac Fac Upp Distress Signals 9 | . 1 . . . 4 1 . . . 3 . Communications Jammed . | . . . . . . . . . . . . Distress Signals . | . . . . . . . . . . . . Times Spotted 215 | . 16 11 . 4 29 25 6 . 57 54 13 Peak Tracking Total 17 | . 3 17 . 4 5 8 2 . 5 7 13 Tactical Retreats 8 | . . . . . 1 3 . . 2 1 1 Traps | -11 -10 -10 -10 -9 -8 -8 -8 -8 -6 -5 -5 ------- Run | Yrd Mat Min Exi Min Mat Sto Rec Scr Fac Fac Upp Traps Triggered 3 | . . . . . . 3 . . . . . Indirectly . | . . . . . . . . . . . . Trap Hack Attempts . | . . . . . . . . . . . . Triggered . | . . . . . . . . . . . . Disarmed . | . . . . . . . . . . . . Reprogrammed . | . . . . . . . . . . . . Reused . | . . . . . . . . . . . . Traps Extracted . | . . . . . . . . . . . . Installed . | . . . . . . . . . . . . Triggered 7 | . . . . . . . . . 4 . 3 Machines | -11 -10 -10 -10 -9 -8 -8 -8 -8 -6 -5 -5 ---------- Run | Yrd Mat Min Exi Min Mat Sto Rec Scr Fac Fac Upp Machines Disabled 57 | . . . . . 3 5 2 . 19 28 . Max in Single Turn 17 | . . . . . 1 1 1 . 17 10 . Garrison Access 1 | . . . . . . . . . 1 . . Machines Repaired . | . . . . . . . . . . . . Machines Dismantled 2 | . . . . . . 2 . . . . . Machines Sabotaged . | . . . . . . . . . . . . Overloaded Fab Kills . | . . . . . . . . . . . . Hacking | -11 -10 -10 -10 -9 -8 -8 -8 -8 -6 -5 -5 --------- Run | Yrd Mat Min Exi Min Mat Sto Rec Scr Fac Fac Upp Machines Accessed 52 | . 7 . 1 . 3 8 12 3 12 6 . Terminals 30 | . 7 . . . 2 7 6 . 4 4 . Fabricators 3 | . . . . . . . . . 2 1 . Repair Stations 5 | . . . . . 1 . . . 3 1 . Recycling Units 8 | . . . . . . 1 4 . 3 . . Scanalyzers . | . . . . . . . . . . . . Garrison Access . | . . . . . . . . . . . . Total Hacks 150 | . 15 . 1 . 7 15 47 27 26 12 . Successful 106 | . 10 . 1 . 3 8 33 27 18 6 . Failed 44 | . 5 . . . 4 7 14 . 8 6 . Catastrophic 15 | . 1 . . . 1 4 5 . 2 2 . Database Lockouts . | . . . . . . . . . . . . Manual 40 | . 12 . 1 . 4 3 9 . 6 5 . Terminals 69 | . 15 . . . 4 14 16 . 11 9 . Fabricators 3 | . . . . . . . . . 2 1 . Repair Stations 13 | . . . . . 3 . . . 8 2 . Recycling Units 12 | . . . . . . 1 6 . 5 . . Scanalyzers . | . . . . . . . . . . . . Garrison Access . | . . . . . . . . . . . . Terminal Hacks 73 | . 5 . 1 . . 7 28 27 3 2 . Record 53 | . . . . . . . 24 27 1 1 . Part Schematic 1 | . . . . . . . . . 1 . . Robot Analysis 2 | . 1 . . . . 1 . . . . . Prototype ID Bank 4 | . 2 . . . . 1 1 . . . . Open Door 4 | . . . . . . 4 . . . . . Level Access Points 1 | . 1 . . . . . . . . . . Terminal Index 1 | . 1 . . . . . . . . . . Alert Level 1 | . . . . . . 1 . . . . . Unreport Threat 4 | . . . . . . . 2 . 1 1 . Derelict Proto ID Bank 1 | . . . 1 . . . . . . . . Release Object 1 | . . . . . . . 1 . . . . Fabricator Hacks 2 | . . . . . . . . . 1 1 . Network Status 2 | . . . . . . . . . 1 1 . Repair Station Hacks 12 | . . . . . 2 . . . 8 2 . Scan Component 6 | . . . . . 1 . . . 4 1 . Repair 6 | . . . . . 1 . . . 4 1 . Recycling Unit Hacks 8 | . . . . . . 1 4 . 3 . . Report Inventory 7 | . . . . . . 1 4 . 2 . . Retrieve Components 1 | . . . . . . . . . 1 . . Scanalyzer . | . . . . . . . . . . . . Garrison Access Hacks . | . . . . . . . . . . . . Unauthorized Hacks 11 | . 5 . . . 1 . 1 . 3 1 . Terminals 9 | . 5 . . . 1 . . . 2 1 . Assimilate 3 | . 1 . . . 1 . . . . 1 . Botnet 5 | . 3 . . . . . . . 2 . . Operators 1 | . 1 . . . . . . . . . . Fabricators . | . . . . . . . . . . . . Repair Stations . | . . . . . . . . . . . . Recycling Units 2 | . . . . . . . 1 . 1 . . Reject 2 | . . . . . . . 1 . 1 . . Scanalyzers . | . . . . . . . . . . . . Garrison Access . | . . . . . . . . . . . . Data Cores Recovered . | . . . . . . . . . . . . Used . | . . . . . . . . . . . . Hacking Detections 28 | . 5 . . . 1 5 9 . 6 2 . Full Trace Events 2 | . . . . . . . 1 . . 1 . Feedback Events . | . . . . . . . . . . . . Feedback Blocked . | . . . . . . . . . . . . Robot Schematics Acquired . | . . . . . . . . . . . . Robots Built . | . . . . . . . . . . . . Authchips . | . . . . . . . . . . . . Time . | . . . . . . . . . . . . Total Robot Build Rating . | . . . . . . . . . . . . Part Schematics Acquired 1 | . . . . . . . . . 1 . . Parts Built . | . . . . . . . . . . . . Authchips . | . . . . . . . . . . . . Time . | . . . . . . . . . . . . Total Part Build Rating . | . . . . . . . . . . . . Parts Repaired 6 | . . . . . 1 . . . 4 1 . Time 335 | . . . . . 53 . . . 226 56 . Parts Recycled . | . . . . . . . . . . . . Recycled Matter . | . . . . . . . . . . . . Retrieved Matter . | . . . . . . . . . . . . Retrieved Components 3 | . . . . . . . . . 3 . . Parts Scanalyzed . | . . . . . . . . . . . . Part Schematics Acquired . | . . . . . . . . . . . . Parts Damaged . | . . . . . . . . . . . . Bothacking | -11 -10 -10 -10 -9 -8 -8 -8 -8 -6 -5 -5 ------------ Run | Yrd Mat Min Exi Min Mat Sto Rec Scr Fac Fac Upp Used RIF Installer . | . . . . . . . . . . . . Robots Hacked 12 | . . . . . 1 2 . 4 4 1 . Non-combat 9 | . . . . . 1 2 . 1 4 1 . Combat 3 | . . . . . . . . 3 . . . Robot Hacks Applied 14 | . . . . . 1 2 . 4 6 1 . parse_system 4 | . . . . . . . . 4 . . . no_distress 9 | . . . . . 1 2 . . 5 1 . find_fabricator 1 | . . . . . . . . . 1 . . Relay Couplers Released . | . . . . . . . . . . . . Fabnet Peak Effective % . | . . . . . . . . . . . . Robots Rewired 15 | . . . . . . 6 9 . . . . Allies Hacked . | . . . . . . . . . . . . Hacks Repelled . | . . . . . . . . . . . . Allies | -11 -10 -10 -10 -9 -8 -8 -8 -8 -6 -5 -5 -------- Run | Yrd Mat Min Exi Min Mat Sto Rec Scr Fac Fac Upp Total Allies 26 | . . . . 3 1 12 9 . . 1 . Largest Group 11 | . . . . 3 4 10 11 7 7 1 . Highest-Rated Group 173 | . . . . 40 49 173 160 94 94 10 . Highest-Rated Ally 31 | . . . . 16 16 31 29 21 21 10 . Total Orders 36 | . . . . . . . 5 6 21 4 . STAY 9 | . . . . . . . . . 9 . . FOLLOW 2 | . . . . . . . . . 2 . . DROP 2 | . . . . . . . 1 . 1 . . PICKUP 3 | . . . . . . . . 2 1 . . EXPLORE 11 | . . . . . . . 3 2 5 1 . RETURN 9 | . . . . . . . 1 2 3 3 . Ally Attacks 157 | . . . . . 25 83 19 . 30 . . Total Damage 2136 | . . . . . 251 1064 261 . 560 . . Kills 23 | . . . . . 1 14 4 . 4 . . Allies Corrupted 1 | . . . . . . 1 . . . . . Allies Melted . | . . . . . . . . . . . . Intel | -11 -10 -10 -10 -9 -8 -8 -8 -8 -6 -5 -5 ------- Run | Yrd Mat Min Exi Min Mat Sto Rec Scr Fac Fac Upp Robot Analysis Total 2 | . 1 . . . . 1 . . . . . Derelict Logs Recovered 1 | . . . . 1 . . . . . . . Drone Launches 25 | . . . . . . . 3 2 6 14 . Drone Recoveries 19 | . . . . . . . 2 2 5 10 . Exploration | -11 -10 -10 -10 -9 -8 -8 -8 -8 -6 -5 -5 ------------- Run | Yrd Mat Min Exi Min Mat Sto Rec Scr Fac Fac Upp Turns Passed 16784 | 141 1230 24 758 995 988 1966 1375 2435 4061 2723 88 Spaces Moved 8850 | 72 642 14 473 609 447 754 577 1832 1857 1520 53 Core 5 | 3 . . . . 1 . . . 1 . . Treads 3493 | 61 642 14 473 609 72 . . . 1290 332 . Legs 3980 | . . . . . 251 754 577 1832 566 . . Wheels 1372 | 8 . . . . 123 . . . . 1188 53 Hover . | . . . . . . . . . . . . Flight . | . . . . . . . . . . . . Fastest Speed 50 | 50 160 160 160 160 90 120 120 120 110 95 100 Average Speed 145 | 146 160 160 160 160 160 176 175 120 149 122 105 Slowest Speed 850 | 160 160 160 160 160 450 190 190 120 850 330 130 Overloaded Moves . | . . . . . . . . . . . . Propulsion Burnouts . | . . . . . . . . . . . . Robots Hopped . | . . . . . . . . . . . . Cave-ins Triggered . | . . . . . . . . . . . . Exploration Rate (%) 52 | 5 88 3 91 97 30 71 96 60 38 38 14 Regions Visited 11 Branch Regions 7 Pre-discovered Areas 1 | . . . . 1 . . . . . . . Known Exits Taken 7 | . . . . 1 1 1 1 1 1 1 . Unknown Exits Taken 4 | 1 1 1 1 . . . . . . . . Scrap Searched 4 | . . . . 2 . . . 2 . . . Spaces Dug 66 | . 6 . . . 2 12 6 . 38 2 . Terrain Destroyed 599 | . 21 . . 13 65 60 11 . 153 271 5 Melee 3 | . . . . . . 2 . . . 1 . Projectile 134 | . 7 . . . 7 30 11 . 23 51 5 AOE 462 | . 14 . . 13 58 28 . . 130 219 . Terrain Rammed . | . . . . . . . . . . . . Walls Destroyed . | . . . . . . . . . . . . Machines Disabled . | . . . . . . . . . . . . Actions | -11 -10 -10 -10 -9 -8 -8 -8 -8 -6 -5 -5 --------- Run | Yrd Mat Min Exi Min Mat Sto Rec Scr Fac Fac Upp Total 11669 | 98 746 16 475 625 607 1256 855 2069 2813 2036 73 Wait 1709 | . 26 3 . 6 18 362 187 220 653 224 10 Move 8839 | 71 641 13 472 608 446 753 576 1831 1856 1519 53 Hop . | . . . . . . . . . . . . Pick Up 100 | 7 14 . 2 1 17 15 2 3 21 18 . Fast Attach 94 | 9 2 . . . 12 5 2 4 26 34 . Attach 45 | 2 2 . . . 7 9 2 . 8 13 2 Detach 10 | . . . . . 4 1 1 . 1 3 . Swap 143 | . 8 . . 6 20 22 9 1 43 31 3 Drop 108 | 5 6 . 1 2 17 12 4 6 36 19 . Fire 519 | 4 47 . . 2 65 48 14 . 166 168 5 Melee 89 | . . . . . 1 16 58 4 3 7 . Ram . | . . . . . . . . . . . . Kick . | . . . . . . . . . . . . Crush . | . . . . . . . . . . . . Escape Stasis . | . . . . . . . . . . . . Rewire . | . . . . . . . . . . . . Trap . | . . . . . . . . . . . . Miscellaneous 13 | . . . . . . 13 . . . . . Route ------- -11/Scrapyard -10/Materials (discovered 4 exits: *Mat x3 / [*Min]) -10/Mines -10/Exiles (discovered 2 exits: [*Min x2]) -9/Mines (discovered 2 exits: *Mat x2) -8/Materials (discovered 3 exits: Fac x2 / *Sto) -8/Storage -8/Recycling (discovered 2 exits: *Fac / *Scr) -8/Scraptown -6/Factory (discovered 2 exits: *Fac x2) -5/Factory (discovered 2 exits: *Fac / *Upp) -5/Upper Caves History --------- Turn | Location | Event 67 | -11/Scrapyard | Discovered new exit (range 15) 142 | -11/Scrapyard | Entered Materials 203 | -10/Materials | Discovered new exit (range 15) 306 | -10/Materials | Build established: Mutant 336 | -10/Materials | Discovered new exit (range 3) 997 | -10/Materials | Discovered new exit (range 10) 1011 | -10/Materials | Identified exit to Materials 1372 | -10/Materials | Entered Mines 1373 | -10/Mines | Assembled infested the area 1378 | -10/Mines | Assisted by a Guerilla fighting off Assembled 1390 | -10/Mines | Deemed a non-threat by the Exiles lab entrance 1390 | -10/Mines | Discovered new exit (range 5) 1396 | -10/Mines | Entered Exiles 1422 | -10/Exiles | Discovered new exit (range 15) 1465 | -10/Exiles | Met 8R-AWN 1492 | -10/Exiles | Met EX-HEX 1545 | -10/Exiles | Met EX-BIN 1582 | -10/Exiles | Aligned with FarCom system 1584 | -10/Exiles | Given EX-Vault access code 1622 | -10/Exiles | Opened EX-Vault 1628 | -10/Exiles | Found Modified TNC 1661 | -10/Exiles | Warned to stay clear of 0b10 Research branches 1708 | -10/Exiles | Met EX-DEC 1826 | -10/Exiles | Visited The Gauntlet 2069 | -10/Exiles | Discovered new exit (range 14) 2154 | -10/Exiles | Left Exiles lab with Modified TNC 2154 | -10/Exiles | Entered Mines 2287 | -9/Mines | Discovered new exit (range 6) 2298 | -9/Mines | Identified exit to Materials 2446 | -9/Mines | Discovered exit to Materials (range 8) 2473 | -9/Mines | Assisted by bots powering up and referring to "LRC-V3" 2503 | -9/Mines | Learned location of Storage (-8) 2613 | -9/Mines | Learned location of 2 exits from Materials 3149 | -9/Mines | Entered Materials 3149 | -8/Materials | Accompanied by 3 allies 3149 | -8/Materials | Evolved 4 slots: Utility x4 3150 | -8/Materials | Identified exit to Factory 3411 | -8/Materials | Lost 6 parts (1p3n2w) 3463 | -8/Materials | Build established: Skirmisher 3606 | -8/Materials | Repaired Corrupted Hacking Suite? 3824 | -8/Materials | Discovered new exit (range 6) 3838 | -8/Materials | Identified exit to Storage 4137 | -8/Materials | Entered Storage 4359 | -8/Storage | Met a pair of Derelict thieves 4473 | -8/Storage | Lost 4 parts (1p1n2w) 5442 | -8/Storage | Assisted by bots powering up and referring to "LRC-V3" 5900 | -8/Storage | Discovered new exit (range 3) 5930 | -8/Storage | Identified exit to Recycling 6103 | -8/Storage | Entered Recycling 6103 | -8/Recycling | Accompanied by 3 allies 6471 | -8/Recycling | Discovered new exit (range 47) 6708 | -8/Recycling | Build established: Commander-Assassin 7368 | -8/Recycling | Lost 3 allies 7400 | -8/Recycling | Scanned before Scraplab entrance 7415 | -8/Recycling | Build established: Commander-Skirmisher 7432 | -8/Recycling | Entered Scraplab 7450 | -8/Recycling | Discovered new exit (range 3) 7451 | -8/Recycling | Identified exit to Scraptown 7478 | -8/Recycling | Entered Scraptown 7478 | -8/Scraptown | Accompanied by 7 allies 7481 | -8/Scraptown | System corruption cleaned by C-Scrubber 7780 | -8/Scraptown | Build established: Commander-Mutant 7811 | -8/Scraptown | Visited Fellowship of the Rings 7952 | -8/Scraptown | Discovered new exit (range 36) 8101 | -8/Scraptown | Identified exit to Factory 8234 | -8/Scraptown | Visited Cyclists 8261 | -8/Scraptown | Visited TADAMA 8285 | -8/Scraptown | Visited Cave Peace 8335 | -8/Scraptown | Turned away by UFD registrar 8544 | -8/Scraptown | Visited Red Mages 8601 | -8/Scraptown | Visited SPCMW 9913 | -8/Scraptown | Entered Factory 9913 | -6/Factory | Accompanied by 7 allies 9913 | -6/Factory | Evolved 4 slots: Propulsion x1, Utility x3 10077 | -6/Factory | Repaired Imp. Carbon-fiber Leg? 10269 | -6/Factory | Build established: Commander-Skirmisher 10360 | -6/Factory | Lost 4 allies 10475 | -6/Factory | Found Prototype Processor 10477 | -6/Factory | Identified Exp. Targeting Computer 10501 | -6/Factory | Found Exp. Targeting Computer 10620 | -6/Factory | Build established: Scavenger-Skirmisher 11080 | -6/Factory | Repaired Hvy. Treads 11182 | -6/Factory | Repaired Cld. Particle Cannon 11356 | -6/Factory | Cargo convoy interrupted 11550 | -6/Factory | Build established: Hacker-Skirmisher 11935 | -6/Factory | Found PL-3XN's Ring of Power 12013 | -6/Factory | Build established: Scavenger-Skirmisher 12709 | -6/Factory | Repaired Hvy. Treads 12986 | -6/Factory | Discovered new exit (range 11) 13015 | -6/Factory | Identified exit to Factory 13206 | -6/Factory | Build established: Scavenger-Mutant 13297 | -6/Factory | Discovered exit to Factory (range 21) 13413 | -6/Factory | First assault squad dispatched 13629 | -6/Factory | Lost 4 parts (1n1u2w) 13805 | -6/Factory | Core integrity fell below 50% 13824 | -6/Factory | Garrison activated, responded to threat 13875 | -6/Factory | System corruption reached 10% 13918 | -6/Factory | System corruption reached 30% 13919 | -6/Factory | Lost 5 parts (1p1n3u) 13974 | -6/Factory | Entered another Factory area 13974 | -5/Factory | Evolved 2 slots: Propulsion x1, Utility x1 14404 | -5/Factory | Build established: Mutant 14461 | -5/Factory | Discovered new exit (range 4) 14468 | -5/Factory | Identified exit to Factory 14574 | -5/Factory | First assault squad dispatched 14651 | -5/Factory | Lost 3 parts (1n2u) 14700 | -5/Factory | Lost 6 parts (2n1u3w) 15271 | -5/Factory | Build established: Scavenger-Skirmisher 15456 | -5/Factory | Lost 4 parts (3n1w) 15831 | -5/Factory | Repaired Arm. Medium Treads? 16547 | -5/Factory | Discovered new exit (range 14) 16568 | -5/Factory | Core integrity fell below 50% 16692 | -5/Factory | Identified exit to Upper Caves 16697 | -5/Factory | Entered Upper Caves 16757 | -5/Upper Caves | Attracted the attention of an 0b10 checkpoint 16779 | -5/Upper Caves | Attracted the attention of an 0b10 outpost 16785 | -5/Upper Caves | Self-destructed Last Messages --------------- 16716_ G-50 Soldier knocked back. 16720_ Cld. Deuterium Engine destroyed. 16725_ Slug penetrates G-50 Soldier. 16725_ G-50 Soldier knocked back. 16725_ Slug penetrates Wall. 16727_ Critical hit (Burn: +26). 16728_ Slug penetrates G-50 Soldier. 16728_ G-50 Soldier knocked back. 16729_ Arm. Huge Wheel destroyed. 16729_ Critical hit (Burn: +36). 16731_ Adv. Targeting Computer destroyed. 16733_ Acquired 2 matter. 16746_ Gauss Cannon destroyed. 16756_ Adv. Terrain Scanner destroyed. 16757_ Y-64 Sentinel: "INTERCEPTING UNREGISTERED DERELICT." 16758_ Adv. Shield Generator destroyed. 16758_ Penetrated by Slug. 16779_ Y-72 Warden: "DETECTED UNIDENTIFIED DERELICT." 16780_ Arm. Huge Wheel destroyed. 16783_ Y-72 Warden: "REQUESTING BACKUP." Map ----- +----------------------------------------------------+ | ????????????????????????????#??## ?######## | | ????????????????????????????? #######?# | | ????????????????????????????? ##??###### | | ?????????????????????????????# #???#??#?## | | ??????????????????????????????# #?##?#??### | | ??????????????????????????????# #######?### | | ???????????????????????????????# ######### | | ???????????????????????????????# ### ## | | ???????????????????????????????# ## ## | | ???????????????????????????????? ## # | | ?????????????????????????????????#### ## | | ?????????????????????????????????##?# #### | | ??????????????????????????????????### ##?### | | ???????????????? ?????????######### ##?#?## | | ???????????????" ??#????## ######### | | ???????????????## ### ??## g### $ | | ???????????????? # ### ### | | ??????????????? ;# g ##?# | | ????????????????? # ###?## | | ????????????????????## ###???## # | | ????????????????????# #??????# # | | ????????????????????### s ##??????# # | | ??????????????????????## ###???????########## | | ???????????????????????## #?????????????????### | | ????????????????????????# #????????????????###? | | ????????????????????????#@ #???????????????????? | | ????????????????????????## ##??????????????????## | | ?????????????????????????####????????????????????? | | ?????????????????????????????????????????????????? | | ?????????????????????????????????????????????????? | | ?????????????????????????????????????????????????? | | ?????????????????????????????????????????????????? | | ?????????????????????????????????????????????????? | | ?????????????????????????????????????????????????? | | ?????????????????????????????????????????????????? | | ?????????????????????????????????????????????????? | | ?????????????????????????????????????????????????? | | ?????????????????????????????????????????????????? | | ?????????????????????????????????????????????????? | | ?????????????????????????????????????????????????? | | ?????????????????????????????????????????????????? | | ?????????????????????????????????????????????????? | | ?????????????????????????????????????????????????? | | | | | | | | | | | | | | | +----------------------------------------------------+ Best States ------------- Heat Dissipation 78 Energy Generation 19 Energy Capacity 660 Matter Stores 300 Matter Capacity 300 Sight Range 22 Terrain Scan Range 20 Terrain Scan Density 210 Jamming Range 14 Corruption Containment 16 Corruption Block 8 Armor Coverage 150 Resistance: TH 25 Evasion (%) 55 Targeting Accuracy 20 Launcher Accuracy 20 Target Analysis 9 Recoil Reduction 4 Offensive Hacking 10 Defensive Hacking 10 Authchip Count 1 Item Schematics ----------------- Imp. System Shield | -6/Factory | Hacked Robot Schematics ------------------ None Fabricated ------------ Nothing Alien Tech Used ----------------- None Achievements -------------- \\IAMDERELICT Challenges ------------ None Game ------ Seed PropulsionConstructSpiker Manual? 0 Play Time 04:24:45 Cumulative 122.8 hours Start 2025.01.04 @ 21:01:14 End 2025.01.05 @ 01:58:02 Sessions 1 Manual Loads 0 Difficulty Rogue Special Mode None Game No. 38 Rogue 38 Adventurer 0 Explorer 0 Win Type - Total 0 Types 0/0/0/0/0/0/0/0/0 Lore% 25 Gallery% 43 Achievement% 37 Wizard Run 0 Options --------- Layout 0 ASCII 0 Keyboard 0 Movement Mouse Keybinds 0 Fullscreen 1 Font 36/Smallcaps Map View 76x50 Zoom Use 0% Tactical HUD 1 Map Filters NONE Filters NONE Steam 1 RUN: eb1eb04d-a429-4e58-acba-c691d6e9988c